lending/lending_fUSD_20240111
["ID","MTS","AMOUNT","RATE_DAILY","PERIOD"]
[311248932,1704996633073,-2049.09728565,0.00022764,2]
[311248933,1704996633083,-501.80753335,0.00022764,2]
[311248934,1704996633092,-219.36359934,0.00022764,2]
[311248935,1704996633102,-272.75848532,0.00022764,2]
[311248936,1704996633112,-155.0,0.00022764,2]
[311248937,1704996633123,-155.10772643,0.00022764,2]
[311248938,1704996633133,-3863.87455095,0.00022764,2]
[311248939,1704996633144,-166.28493638,0.00022765,2]
[311248940,1704996633154,-400.0,0.00022766,2]
[311248941,1704996633164,-202.36293951,0.00022766,2]
[311248942,1704996633174,-155.42508523,0.00022766,2]
[311248943,1704996633183,-485.5928344,0.00022766,2]
[311248944,1704996633193,-13002.16292667,0.00022766,2]
[311248945,1704996633202,-531.14690522,0.00022766,2]
[311248946,1704996633212,-155.0,0.00022766,2]
[311248947,1704996633221,-281.57424767,0.00022766,2]
[311248948,1704996633231,-155.42075614,0.00022766,2]
[311248949,1704996633241,-207.52259448,0.00022766,2]
[311248950,1704996633250,-2621.14603155,0.00022766,2]
[311248951,1704996633259,-3937.41330267,0.00022766,2]
[311248952,1704996633269,-198.49468833,0.00022766,2]
[311248953,1704996633279,-1425.63482222,0.00022766,2]
[311248954,1704996633292,-155.46639801,0.00022766,2]
[311248955,1704996633313,-1911.21380393,0.00022766,2]
[311248956,1704996633329,-182.17402601,0.00022766,2]
[311248957,1704996633339,-169.29091808,0.00022766,2]
[311248958,1704996633349,-155.90591231,0.00022766,2]
[311248959,1704996633358,-515.02640098,0.00022766,2]
[311248960,1704996633368,-155.6555082,0.00022766,2]
[311248961,1704996633378,-336.92043028,0.00022766,2]
[311248962,1704996633387,-1043.80845818,0.00022766,2]
[311248963,1704996633397,-1619.82090544,0.00022766,2]
[311248964,1704996633406,-155.0,0.00022766,2]
[311248965,1704996633416,-1042.38109743,0.00022766,2]
[311248966,1704996633425,-155.36166347,0.00022766,2]
[311248967,1704996633435,-214.99157807,0.00022766,2]
[311248968,1704996633445,-951.29019971,0.00022766,2]
[311248969,1704996633454,-376.60399064,0.00022767,2]
[311248970,1704996633463,-155.42012736,0.00022767,2]
[311248971,1704996633472,-155.0,0.00022767,2]
[311248972,1704996633481,-1200.63953512,0.00022767,2]
[311248973,1704996633491,-363.25910941,0.00022767,2]
[311248974,1704996633500,-157.15163255,0.00022767,2]
[311248975,1704996633510,-155.22968628,0.00022767,2]
[311248976,1704996633519,-197.33250886,0.00022769,2]
[311248977,1704996633528,-446.20819198,0.0002278,2]
[311248978,1704996633537,-201.69,0.00022781,2]
[311248979,1704996633547,-155.28,0.00022787,2]
[311248980,1704996633556,-197.33250886,0.00022795,2]
[311248981,1704996633565,-155.0,0.000228,2]
[311248982,1704996633574,-354.4413803,0.0002282,2]
[311248983,1704996633583,-197.33250886,0.00022821,2]
[311248984,1704996633592,-197.33250886,0.00022847,2]
[311248985,1704996633602,-1471.29,0.00022873,2]
[311248986,1704996633611,-197.33250886,0.00022874,2]
[311248987,1704996633621,-214.66133888,0.00022881,2]
[311248988,1704996633630,-314.56528901,0.00022881,2]
[311248989,1704996633640,-347.25303869,0.00022881,2]
[311248990,1704996633650,-155.3534416,0.00022881,2]
[311248991,1704996633659,-163.45351284,0.00022881,2]
[311248992,1704996633668,-383.8,0.00022881,2]
[311248993,1704996633840,-213.67730651,0.00022882,2]
[311248994,1704996633850,-699.23427772,0.00022882,2]
[311248995,1704996633860,-155.59197994,0.00022884,2]
[311248996,1704996633869,-790.48668415,0.00022889,2]
[311248997,1704996633879,-1000.0,0.00022898,2]
[311248998,1704996633888,-39789.9313,0.00022899,2]
[311248999,1704996633897,-13928.55198618,0.000229,2]
[311249000,1704996633906,-200.0,0.000229,2]
[311249001,1704996633915,-197.33250886,0.000229,2]
[311249002,1704996633925,-11583.94,0.000229,2]
[311249003,1704996633934,-446.20819198,0.000229,2]
[311249004,1704996633945,-206.98671375,0.000229,2]
[311249005,1704996633954,-2680.72134624,0.000229,2]
[311249006,1704996633964,-2093.93102332,0.000229,2]
[311249007,1704996633973,-5768.79084459,0.000229,2]
[311249008,1704996633983,-483.99312762,0.000229,2]
[311249009,1704996633992,-243.97,0.00022944,2]
[311249010,1704996634002,-1471.29,0.00022989,2]
[311249011,1704996634011,-790.48668415,0.0002299,2]
[311249012,1704996634020,-308.83142289,0.00022996,2]
[311249013,1704996634029,-155.0,0.00022996,2]
[311249014,1704996634038,-3052.64896283,0.00022997,2]
[311249015,1704996634046,-914.75035507,0.00022997,2]
[311249016,1704996634055,-150.0,0.00022999,2]
[311249017,1704996634064,-150.0,0.00022999,2]
[311249018,1704996634072,-150.0,0.00022999,2]
[311249019,1704996634079,-150.0,0.00022999,2]
[311249020,1704996634088,-150.0,0.00022999,2]
[311249021,1704996634097,-150.0,0.00022999,2]
[311249022,1704996634106,-150.0,0.00022999,2]
[311249023,1704996634114,-150.0,0.00022999,2]
[311249024,1704996634124,-2521346.05248876,0.00023,2]
[311249025,1704996634444,-352.35296888,0.00023,2]
[311249026,1704996634455,-570.09,0.00023,2]
[311249027,1704996634466,-1314.39513694,0.00023,2]
[311249028,1704996634489,-831.39159651,0.00023,2]
[311249029,1704996634500,-133515.03792975,0.00023,2]
[311249030,1704996634511,-4812.29402316,0.00023,2]
[311249031,1704996634522,-3575.20240066,0.00023,2]
[311249032,1704996634536,-16929.49973076,0.00023,2]
[311249033,1704996634548,-667.61891395,0.00023,2]
[311249034,1704996634558,-929.82241406,0.00023,2]
[311249035,1704996634570,-2494.94839903,0.00023,2]
[311249036,1704996634581,-786.38580219,0.00023,2]
[311249037,1704996634595,-980.60879457,0.00023,2]
[311249038,1704996634606,-5290.85511245,0.00023,2]
[311249039,1704996634617,-1134.72,0.00023,2]
[311249055,1704996637564,-19442.52981296,0.00023,2]
[311249056,1704996637576,-1122.82641628,0.00023,2]
[311249057,1704996637587,-1164.6246,0.00023,2]
[311249058,1704996637630,-24024.27347256,0.00023,2]
[311249059,1704996637643,-555.54358986,0.00023,2]
[311249060,1704996637694,-259363.61057026,0.00023,2]
[311249061,1704996637705,-29226.05274577,0.00023,2]
[311249062,1704996637716,-47675.82837321,0.00023,2]
[311249063,1704996637728,-123795.86382422,0.00023,2]
[311249064,1704996637740,-220062.30498329,0.00023,2]
[311249065,1704996637752,-323453.10857772,0.00023,2]
[311249066,1704996637762,-88073.49745307,0.00023,2]
[311249067,1704996637774,-290397.59834485,0.00023,2]
[311249068,1704996637786,-115616.44042222,0.00023,2]
[311249069,1704996637800,-13559.17735568,0.00023,2]
[311249070,1704996637811,-2158.52265859,0.00023,2]
[311249071,1704996637822,-492.07859962,0.00023,2]
[311249072,1704996637834,-2197.4250838,0.00023,2]
[311249073,1704996637853,-1757398.85058806,0.00023,2]
[311249074,1704996637862,-160.17,0.0002301,2]
[311249075,1704996637873,-1057.13967802,0.00023089,2]
[311249076,1704996637882,-150.0,0.00023096,2]
[311249077,1704996637891,-176.05,0.00023096,2]
[311249078,1704996637900,-383.8,0.00023099,2]
[311249079,1704996637909,-1471.29,0.00023104,2]
[311249080,1704996637918,-1471.29,0.0002322,2]
[311249081,1704996637927,-500.0,0.00023288,4]
[311249082,1704996637936,-500.77696283,0.00023288,4]
[311249083,1704996637945,-500.0,0.00023288,4]
[311249084,1704996637955,-500.0,0.00023288,4]
[311249085,1704996637965,-309.56999792,0.00023288,4]
[311249086,1704996637974,-303.57525048,0.00023288,4]
[311249087,1704996637983,-500.0,0.00023288,4]
[311249088,1704996637992,-500.0,0.00023288,4]
[311249089,1704996638001,-500.0,0.00023288,4]
[311249090,1704996638010,-366.94235385,0.00023288,4]
[311249091,1704996638019,-454.29480441,0.00023288,4]
[311249092,1704996638028,-500.0,0.00023288,4]
[311249093,1704996638037,-500.0,0.00023288,4]
[311249094,1704996638046,-500.0,0.00023288,4]
[311249095,1704996638055,-500.0,0.00023288,4]
[311249096,1704996638064,-373.16902012,0.00023288,2]
[311249097,1704996638073,-500.0,0.00023288,2]
[311249098,1704996638082,-607.45041054,0.00023288,2]
[311249099,1704996638090,-201.93790915,0.00023288,2]
[311249100,1704996638100,-550.90114703,0.00023288,2]
[311249101,1704996638109,-499.99999999,0.00023288,4]
[311249102,1704996638118,-383.8,0.00023317,2]
[311249103,1704996638127,-1471.29,0.00023335,2]
[311249104,1704996638137,-1471.29,0.00023451,2]
[311249105,1704996638146,-1385.60899785,0.00023487,2]
[311249106,1704996638155,-383.8,0.00023535,2]
[311249107,1704996638165,-1471.29,0.00023566,2]
[311249108,1704996638174,-2673.43,0.00023627,2]
[311249109,1704996638183,-150.0,0.00023644,2]
[311249110,1704996638193,-176.05,0.00023644,2]
[311249111,1704996638203,-1471.29,0.00023682,2]
[311249112,1704996638215,-1421.63,0.00023732,2]
[311249113,1704996638225,-383.8,0.00023753,2]
[311249114,1704996638234,-1471.29,0.00023798,2]
[311249115,1704996638242,-201.69,0.00023866,2]
[311249116,1704996638252,-155.28,0.00023873,2]
[311249117,1704996638261,-1471.29,0.00023913,2]
[311249118,1704996638272,-13928.55198614,0.00023947,2]
[311249119,1704996638282,-383.8,0.00023971,2]
[311249120,1704996638291,-155.0,0.00024,2]
[311249121,1704996638301,-200.84765735,0.00024,2]
[311249122,1704996638309,-1471.29,0.00024029,2]
[311249123,1704996638319,-155.52776489,0.000241,2]
[311249124,1704996638328,-1471.29,0.00024144,2]
[311249125,1704996638336,-383.8,0.00024189,2]
[311249126,1704996638345,-151.02717831,0.00024192,2]
[311249127,1704996638355,-176.05,0.00024192,2]
[311249128,1704996638364,-857.83,0.00024261,2]
[311249130,1704996638373,-680.0,0.00024271,2]
[311249132,1704996638382,-167.0,0.00024297,2]
[311249134,1704996638391,-167.0,0.00024297,2]
[311249136,1704996638400,-243.97,0.00024314,2]
[311249137,1704996638409,-383.8,0.00024407,2]
[311249139,1704996638418,-2129.82,0.00024437,2]
[311249141,1704996638428,-400.0,0.00024471,2]
[311249143,1704996638437,-1385.60899785,0.00024556,2]
[311249145,1704996638447,-2673.43,0.00024606,2]
[311249147,1704996638457,-383.8,0.00024625,2]
[311249149,1704996638467,-250.0,0.00024658,2]
[311249151,1704996638476,-150.0,0.00024739,2]
[311249153,1704996638485,-176.05,0.0002474,2]
[311249155,1704996638494,-210.0,0.00024763,2]
[311249156,1704996638503,-1421.63,0.00024811,2]
[311249159,1704996638512,-383.8,0.00024842,2]
[311249162,1704996638521,-201.69,0.00024951,2]
[311249164,1704996638530,-68782.77212575,0.00024988,2]
[311249168,1704996638539,-13928.55198614,0.00024995,2]
[311249171,1704996638548,-1581.98629386,0.00025,2]
[311249173,1704996638557,-1246.87746617,0.00025,2]
[311249174,1704996638566,-692.73695879,0.00025,2]
[311249176,1704996638574,-201.7363193,0.00025,2]
[311249178,1704996638584,-1017.16964654,0.00025,2]
[311249180,1704996638593,-302.99852373,0.00025,2]
[311249181,1704996638602,-155.0,0.00025,2]
[311249183,1704996638612,-167.12139895,0.00025,2]
[311249200,1704996638793,-350.0,0.00025,3]
[311249202,1704996638803,-450.0,0.0002502,3]
[311249204,1704996638812,-383.8,0.0002506,2]
[311249206,1704996638821,-167.0,0.00025099,2]
[311249207,1704996638830,-383.8,0.00025278,2]
[311249208,1704996638839,-176.05,0.00025288,2]
[311249209,1704996638848,-167.0,0.00025299,2]
[311249210,1704996638857,-2129.82,0.00025327,2]
[311249211,1704996638866,-193.94,0.00025387,2]
[311249212,1704996638875,-322.11967009,0.000254,2]
[311249213,1704996638884,-383.8,0.00025496,2]
[311249214,1704996638893,-2673.43,0.00025584,2]
[311249215,1704996638902,-1385.60899785,0.00025625,2]
[311249216,1704996638911,-193.94,0.00025639,2]
[311249217,1704996638920,-383.8,0.00025714,2]
[311249218,1704996638929,-176.05,0.00025836,2]
[311249219,1704996638938,-1421.63,0.0002589,2]
[311249220,1704996638950,-193.94,0.0002589,2]
[311249221,1704996638959,-167.0,0.00025901,2]
[311249223,1704996638968,-383.8,0.00025932,2]
[311249225,1704996638977,-711.0,0.00026,2]
[311249227,1704996638987,-201.69,0.00026036,2]
[311249229,1704996638997,-13928.55198614,0.00026042,2]
[311249231,1704996639007,-150.0,0.00026079,2]
[311249233,1704996639016,-193.94,0.00026141,2]
[311249235,1704996639026,-383.8,0.0002615,2]
[311249237,1704996639035,-250.16449949,0.00026163,2]
[311249239,1704996639045,-2129.82,0.00026216,2]
[311249241,1704996639054,-206.98671373,0.000263,2]
[311249243,1704996639064,-2680.72134623,0.000263,2]
[311249245,1704996639073,-2093.9310233,0.000263,2]
[311249247,1704996639082,-5768.79084459,0.000263,2]
[311249249,1704996639091,-483.99312762,0.000263,2]
[311249251,1704996639100,-167.0,0.00026302,2]
[311249253,1704996639110,-176.05,0.00026384,2]
[311249255,1704996639120,-193.94,0.00026393,2]
[311249257,1704996639129,-857.83,0.00026525,2]
[311249259,1704996639138,-2673.43,0.00026563,2]
[311249261,1704996639147,-3005.96,0.00026575,2]
[311249263,1704996639156,-193.94,0.00026644,2]
[311249265,1704996639165,-1385.60899785,0.00026693,3]
[311249267,1704996639174,-167.0,0.00026703,2]
[311249269,1704996639183,-1012.902,0.00026737,2]
[311249271,1704996639194,-193.94,0.00026895,2]
[311249272,1704996639204,-176.05,0.00026932,2]
[311249274,1704996639214,-680.0,0.00026968,2]
[311249277,1704996639224,-2000.0,0.00027,2]
[311249278,1704996639233,-400.0,0.00027,3]
[311249280,1704996639242,-415.4843753,0.00027,2]
[311249282,1704996639251,-13928.55198614,0.00027089,2]
[311249284,1704996639260,-2129.82,0.00027106,2]
[311249286,1704996639269,-193.94,0.00027147,2]
[311249288,1704996639279,-400.0,0.0002719,2]
[311249290,1704996639288,-730.54,0.00027233,2]
[311249292,1704996639297,-293.0,0.00027239,2]
[311249294,1704996639307,-167.0,0.00027304,2]
[311249296,1704996639316,-200.0,0.00027397,5]
[311249298,1704996639326,-950.68890052,0.00027397,2]
[311249300,1704996639335,-155.0,0.00027397,2]
[311249302,1704996639344,-150.0,0.00027397,2]
[311249304,1704996639354,-3000.0,0.00027397,2]
[311249306,1704996639363,-3000.0,0.00027397,2]
[311249308,1704996639372,-3000.0,0.00027397,2]
[311249311,1704996639382,-3000.0,0.00027397,2]
[311249313,1704996639391,-3000.0,0.00027397,2]
[311249315,1704996639400,-3000.0,0.00027397,2]
[311249316,1704996639410,-3000.0,0.00027397,2]
[311249318,1704996639420,-3000.0,0.00027397,2]
[311249321,1704996639429,-3000.0,0.00027397,2]
[311249323,1704996639438,-3000.0,0.00027397,2]
[311249325,1704996639450,-3000.0,0.00027397,2]
[311249327,1704996639459,-3000.0,0.00027397,2]
[311249328,1704996639468,-3000.0,0.00027397,2]
[311249330,1704996639478,-3000.0,0.00027397,2]
[311249332,1704996639487,-3000.0,0.00027397,2]
[311249335,1704996639497,-3000.0,0.00027397,2]
[311249337,1704996639506,-3000.0,0.00027397,2]
[311249339,1704996639516,-3000.0,0.00027397,2]
[311249341,1704996639525,-3000.0,0.00027397,2]
[311249343,1704996639534,-5906.1149099,0.00027397,2]
[311249345,1704996639543,-208.76466007,0.00027397,2]
[311249346,1704996639552,-1055.34,0.00027397,4]
[311249348,1704996639562,-9001.72,0.00027397,2]
[311249350,1704996639571,-250.0,0.00027397,2]
[311249353,1704996639580,-1874.02,0.00027397,2]
[311249355,1704996639590,-193.94,0.00027398,2]
[311249357,1704996639599,-1393.56,0.000274,2]
[311249359,1704996639608,-1393.56,0.000274,2]
[311249360,1704996639619,-1393.56,0.000274,2]
[311249362,1704996639629,-1393.56,0.000274,2]
[311249365,1704996639638,-1393.56,0.000274,2]
[311249366,1704996639647,-1393.56,0.000274,2]
[311249368,1704996639656,-1393.56,0.000274,2]
[311249371,1704996639665,-1393.56,0.000274,2]
[311249373,1704996639674,-1393.56,0.000274,2]
[311249375,1704996639683,-1393.56,0.000274,2]
[311249377,1704996639694,-237.26198864,0.00027479,2]
[311249378,1704996639703,-348.25161643,0.0002748,2]
[311249381,1704996639712,-4917.25208303,0.000275,2]
[311249382,1704996639722,-167.0,0.00027505,2]
[311249385,1704996639731,-2673.43,0.00027541,2]
[311249387,1704996639740,-9001.72,0.00027556,2]
[311249388,1704996639750,-193.94,0.00027649,2]
[311249390,1704996639759,-9001.72,0.00027714,2]
[311249393,1704996639768,-711.4,0.00027727,2]
[311249395,1704996639778,-11056.34,0.00027799,2]
[311249397,1704996639789,-9001.72,0.00027872,2]
[311249399,1704996639808,-193.94,0.00027901,2]
[311249401,1704996639828,-200.0,0.00027945,5]
[311249403,1704996639838,-150.0,0.00027945,2]
[311249405,1704996639847,-2129.82,0.00027996,2]
[311249407,1704996639858,-202.73182804,0.00028,2]
[311249409,1704996639868,-687.67126358,0.00028,2]
[311249411,1704996639878,-200.0,0.00028,2]
[311249413,1704996639887,-9001.72,0.0002803,2]
[311249415,1704996639896,-13928.55198614,0.00028136,2]
[311249417,1704996639905,-193.94,0.00028152,2]
[311249419,1704996639915,-9001.72,0.00028189,2]
[311249421,1704996639924,-167.0,0.00028307,2]
[311249423,1704996639934,-167.0,0.00028307,2]
[311249425,1704996639943,-9001.72,0.00028347,2]
[311249427,1704996639953,-193.94,0.00028404,2]
[311249429,1704996639962,-203.84769879,0.00028493,5]
[311249431,1704996639972,-150.0,0.00028493,2]
[311249433,1704996639981,-9001.72,0.00028505,2]
[311249435,1704996639991,-2673.43,0.0002852,2]
[311249437,1704996640000,-193.94,0.00028655,2]
[311249439,1704996640010,-9001.72,0.00028664,2]
[311249443,1704996640019,-155.0,0.00028767,2]
[311249446,1704996640029,-857.83,0.00028788,2]
[311249449,1704996640038,-150.0,0.00028821,2]
[311249452,1704996640047,-150.0,0.00028821,2]
[311249455,1704996640057,-9001.72,0.00028822,2]
[311249458,1704996640066,-2129.82,0.00028886,2]
[311249463,1704996640076,-153.35682253,0.000289,2]
[311249468,1704996640085,-193.94,0.00028906,2]
[311249473,1704996640095,-7879.36188141,0.00029,15]
[311249478,1704996640104,-450.0,0.00029,3]
[311249483,1704996640113,-150.0,0.00029041,2]
[311249486,1704996640122,-2500.0,0.00029111,2]
[311249489,1704996640131,-193.94,0.00029158,2]
[311249492,1704996640141,-13928.55198614,0.00029184,2]
[311249493,1704996640151,-193.94,0.00029409,2]
[311249495,1704996640161,-2673.43,0.00029498,2]
[311249497,1704996640171,-187.63828412,0.000295,3]
[311249500,1704996640181,-19100.27553742,0.000295,2]
[311249503,1704996640190,-150.0,0.00029589,2]
[311249507,1704996640202,-193.94,0.0002966,2]
[311249510,1704996640212,-680.0,0.00029665,2]
[311249513,1704996640222,-206.98671373,0.000297,2]
[311249516,1704996640232,-2680.72134623,0.000297,2]
[311249519,1704996640242,-2093.9310233,0.000297,2]
[311249522,1704996640252,-5768.79084459,0.000297,2]
[311249525,1704996640262,-483.99312762,0.000297,2]
[311249528,1704996640271,-1000.0,0.00029778,2]
[311249531,1704996640280,-18177.87797262,0.00029797,2]
[311249534,1704996640290,-150.0,0.00029799,2]
[311249537,1704996640300,-150.0,0.00029799,2]
[311249540,1704996640311,-195.68945489,0.000298,2]
[311249543,1704996640320,-850322.22173093,0.000298,2]
[311249547,1704996640336,-620.07290513,0.000298,2]
[311249551,1704996640347,-12777.66329372,0.000298,2]
[311249556,1704996640368,-72009.90717239,0.000298,2]
[311249559,1704996640380,-1027.74101374,0.000298,2]
[311249584,1704996640522,-1033.31744354,0.000298,2]
[311249586,1704996640536,-459.33057317,0.000298,2]
[311249588,1704996640547,-487.97034493,0.000298,2]
[311249590,1704996640559,-300.0,0.000298,2]
[311249593,1704996640571,-238418.99436009,0.000298,2]
[311249595,1704996640581,-990.0,0.000298,7]
[311249597,1704996640591,-990.0,0.000298,7]
[311249599,1704996640601,-990.0,0.000298,7]
[311249601,1704996640611,-990.0,0.000298,7]
[311249603,1704996640620,-990.0,0.000298,7]
[311249605,1704996640630,-990.0,0.000298,7]
[311249607,1704996640639,-990.0,0.000298,7]
[311249609,1704996640648,-990.0,0.000298,7]
[311249611,1704996640658,-990.0,0.000298,7]
[311249613,1704996640667,-990.0,0.000298,7]
[311249615,1704996640676,-990.0,0.000298,7]
[311249617,1704996640685,-990.0,0.000298,7]
[311249619,1704996640694,-990.0,0.000298,7]
[311249621,1704996640703,-990.0,0.000298,7]
[311249623,1704996640713,-990.0,0.000298,7]
[311249625,1704996640723,-990.0,0.000298,7]
[311249627,1704996640732,-990.0,0.000298,7]
[311249629,1704996640741,-990.0,0.000298,7]
[311249631,1704996640750,-990.0,0.000298,7]
[311249633,1704996640759,-990.0,0.000298,7]
[311249635,1704996640768,-990.0,0.000298,7]
[311249637,1704996640777,-990.0,0.000298,7]
[311249639,1704996640786,-990.0,0.000298,7]
[311249641,1704996640796,-990.0,0.000298,7]
[311249643,1704996640806,-990.0,0.000298,7]
[311249645,1704996640815,-990.0,0.000298,7]
[311249647,1704996640826,-990.0,0.000298,7]
[311249649,1704996640836,-990.0,0.000298,7]
[311249651,1704996640845,-990.0,0.000298,7]
[311249653,1704996640855,-990.0,0.000298,7]
[311249655,1704996640864,-990.0,0.000298,7]
[311249657,1704996640873,-990.0,0.000298,7]
[311249659,1704996640882,-990.0,0.000298,7]
[311249661,1704996640891,-990.0,0.000298,7]
[311249663,1704996640900,-990.0,0.000298,7]
[311249665,1704996640909,-990.0,0.000298,7]
[311249667,1704996640918,-990.0,0.000298,7]
[311249669,1704996640928,-990.0,0.000298,7]
[311249671,1704996640938,-990.0,0.000298,7]
[311249673,1704996640948,-990.0,0.000298,7]
[311249675,1704996640957,-990.0,0.000298,7]
[311249678,1704996640967,-990.0,0.000298,7]
[311249679,1704996640976,-990.0,0.000298,7]
[311249681,1704996640985,-970.568696,0.000298,7]
[311249683,1704996640994,-53654.31709393,0.000299,2]
[311249686,1704996641004,-7633.8898,0.000299,2]
[311249688,1704996641013,-667.6616,0.000299,2]
[311249690,1704996641022,-1000.0,0.000299,2]
[311249692,1704996641031,-250.16449949,0.000299,2]
[311249694,1704996641040,-2909.0,0.000299,2]
[311249696,1704996641049,-400.0,0.00029909,2]
[311249697,1704996641059,-193.94,0.00029912,2]
[311249700,1704996641069,-2715.22247625,0.0002996,2]
[311249702,1704996641078,-411.0,0.00029963,2]
[311249704,1704996641087,-645.0769315,0.0002998,3]
[311249706,1704996641096,-150.0,0.00029999,2]
[311249707,1704996641106,-150.0,0.00029999,2]
[311249709,1704996641115,-155.0,0.0003,2]
[311249712,1704996641125,-72797.28205453,0.0003,4]
[311249714,1704996641134,-11925.72137361,0.0003,4]
[311249715,1704996641143,-157.84799997,0.0003,4]
[311249717,1704996641154,-8824.68108968,0.0003,4]
[311249719,1704996641163,-1647.11,0.0003,30]
[311249722,1704996641173,-155.0,0.0003,4]
[311249723,1704996641182,-308366.93329374,0.0003,4]
[311249725,1704996641191,-155.0,0.0003,4]
[311249727,1704996641201,-159.66102012,0.0003,4]
[311249730,1704996641210,-445.44211474,0.0003,4]
[311249732,1704996641220,-171.98990679,0.0003,4]
[311249734,1704996641229,-155.0,0.0003,4]
[311249736,1704996641239,-461.6883313,0.0003,4]
[311249738,1704996641248,-169.66258545,0.0003,4]
[311249740,1704996641257,-690.72186391,0.0003,2]
[311249742,1704996641266,-812.78051941,0.0003,4]
[311249744,1704996641276,-581.6237216,0.0003,2]
[311249746,1704996641285,-2553.39874844,0.0003,4]
[311249748,1704996641294,-244023.46059634,0.0003,4]
[311249750,1704996641302,-311.01234172,0.0003,2]
[311249752,1704996641311,-202.0,0.0003,2]
[311249754,1704996641321,-200.0,0.0003,7]
[311249756,1704996641330,-1000.0,0.0003,2]
[311249758,1704996641339,-153.0,0.0003,2]
[311249760,1704996641349,-153.0,0.0003,2]
[311249762,1704996641358,-153.0,0.0003,2]
[311249764,1704996641367,-153.0,0.0003,2]
[311249766,1704996641377,-153.0,0.0003,2]
[311249768,1704996641386,-153.0,0.0003,2]
[311249770,1704996641395,-153.0,0.0003,2]
[311249772,1704996641404,-153.0,0.0003,2]
[311249774,1704996641413,-153.0,0.0003,2]
[311249792,1704996641564,-153.0,0.0003,2]
[311249794,1704996641574,-153.0,0.0003,2]
[311249796,1704996641583,-153.0,0.0003,2]
[311249797,1704996641592,-153.0,0.0003,2]
[311249798,1704996641601,-153.0,0.0003,2]
[311249799,1704996641610,-153.0,0.0003,2]
[311249800,1704996641619,-153.0,0.0003,2]
[311249801,1704996641627,-153.0,0.0003,2]
[311249802,1704996641636,-153.0,0.0003,2]
[311249803,1704996641645,-153.0,0.0003,2]
[311249804,1704996641654,-153.0,0.0003,2]
[311249805,1704996641662,-153.0,0.0003,2]
[311249806,1704996641671,-153.0,0.0003,2]
[311249807,1704996641680,-153.0,0.0003,2]
[311249809,1704996641689,-153.0,0.0003,2]
[311249811,1704996641699,-450.0,0.0003002,3]
[311249813,1704996641708,-25528.0,0.000301,2]
[311249815,1704996641717,-4325.13662675,0.000301,2]
[311249817,1704996641726,-991.9913937,0.00030124,2]
[311249819,1704996641735,-300.0,0.00030136,2]
[311249821,1704996641744,-300.0,0.00030136,2]
[311249823,1704996641753,-160.569182,0.00030136,2]
[311249825,1704996641762,-10000.0,0.00030137,2]
[311249827,1704996641771,-153.84,0.00030137,2]
[311249829,1704996641782,-155.0,0.00030137,2]
[311249831,1704996641793,-237.5410763,0.00030137,2]
[311249833,1704996641802,-193.94,0.00030163,2]
[311249835,1704996641811,-13928.55198614,0.00030231,2]
[311249837,1704996641820,-2673.43,0.00030476,2]
[311249839,1704996641830,-450.0,0.0003064,3]
[311249841,1704996641840,-150.14241923,0.000309,2]
[311249843,1704996641849,-150.14241864,0.000309,2]